bitfinex/quotes_SOLUSD_20240729
["timestamp","ask_amount","ask_price","bid_price","bid_amount"]
[1722263874071,24.17,189.48,189.4,5.2798]
[1722263874072,20.0,189.44,189.4,5.2798]
[1722263874770,20.0,189.45,189.38,18.4809]
[1722263874974,20.0,189.47,189.38,18.4809]
[1722263875198,20.0,189.47,189.37,6.606]
[1722263875390,5.2795,189.41,189.37,6.606]
[1722263875885,24.17,189.45,189.37,6.606]
[1722263876092,5.2801,189.39,189.37,6.606]
[1722263876387,45.0,189.44,189.37,6.606]
[1722263876583,20.0,189.43,189.37,6.606]
[1722263876779,50.2793,189.42,189.37,6.606]
[1722263876984,20.0,189.43,189.39,5.2798]
[1722263877366,20.0,189.44,189.39,5.2798]
[1722263877871,20.0,189.44,189.4,5.2797]
[1722263878072,25.2788,189.44,189.39,5.28]
[1722263878276,25.2788,189.44,189.4,5.2798]
[1722263878277,20.0,189.44,189.4,5.2798]
[1722263878880,20.0,189.44,189.41,5.2795]
[1722263879081,5.2779,189.47,189.42,5.2792]
[1722263879595,5.2782,189.46,189.41,5.2795]
[1722263880267,20.0,189.45,189.42,5.2792]
[1722263880591,20.0,189.46,189.41,5.2795]
[1722263880782,20.0,189.46,189.42,5.2791]
[1722263881194,25.2782,189.46,189.41,5.2795]
[1722263882680,5.2784,189.45,189.4,5.2797]
[1722263882878,20.0,189.46,189.42,13.1981]
[1722263883094,1.31971718,189.52,189.43,0.56235537]
[1722263883095,20.0,189.52,189.43,0.56235537]
[1722263883295,5.2773,189.5,189.44,5.2784]
[1722263883472,5.2774,189.49,189.44,21.9374]
[1722263883678,25.277,189.5,189.45,5.84056298]
[1722263883880,20.0,189.48,189.45,5.2783]
[1722263884207,20.0,189.48,189.44,16.659]
[1722263884408,20.0,189.48,189.44,21.9376]
[1722263884703,20.0,189.48,189.44,16.659]
[1722263885008,20.0,189.48,189.45,6.5877]
[1722263885205,20.0,189.5,189.45,19.7837]
[1722263885388,5.2762,189.53,189.47,5.2776]
[1722263885717,5.2762,189.53,189.48,5.83870232]
[1722263886420,5.2759,189.55,189.49,5.83845835]
[1722263886587,5.2759,189.55,189.5,5.2769]
[1722263886785,5.2759,189.55,189.51,0.56103718]
[1722263886989,5.2759,189.55,189.5,5.2769]
[1722263887501,5.2759,189.55,189.51,0.56103387]
[1722263887877,5.2759,189.55,189.5,5.2769]
[1722263888095,5.2759,189.55,189.51,0.56100009]
[1722263888297,5.275,189.58,189.54,6.656]
[1722263888502,5.275,189.58,189.54,7.21658231]
[1722263889193,5.275,189.57,189.54,7.21658231]
[1722263889811,37.3542,189.63,189.54,6.656]
[1722263890020,5.2756,189.55,189.48,6.3673]
[1722263890206,24.17,189.6,189.48,21.7015]
[1722263890513,20.0,189.59,189.5,13.1923]
[1722263890699,5.2752,189.57,189.51,5.2766]
[1722263891082,5.2747,189.59,189.52,0.56078682]
[1722263891300,20.0,189.58,189.5,13.1923]
[1722263891781,5.2756,189.55,189.5,18.469]
[1722263892185,13.1863,189.59,189.5,13.1923]
[1722263892502,5.2748,189.58,189.52,5.2763]
[1722263892704,20.0,189.57,189.52,5.2763]
[1722263892880,20.0,189.57,189.53,5.2761]
[1722263893716,5.2745,189.59,189.54,5.83628443]
[1722263894225,5.2745,189.59,189.54,5.2759]
[1722263894423,5.2748,189.58,189.53,18.4663]
[1722263894814,5.2745,189.6,189.54,5.2758]
[1722263895021,5.2746,189.59,189.54,5.2758]
[1722263895320,24.17,189.63,189.54,5.83616689]
[1722263895526,5.2748,189.58,189.53,18.4662]
[1722263896509,5.2751,189.57,189.53,13.1901]
[1722263897939,5.275,189.58,189.53,5.2762]
[1722263898231,5.275,189.57,189.52,5.2764]
[1722263898846,5.2754,189.56,189.51,18.468]
[1722263899034,5.2751,189.57,189.52,5.2764]
[1722263899714,5.2751,189.57,189.48,21.7015]
[1722263899715,20.0,189.56,189.48,21.7015]
[1722263899917,20.0,189.56,189.48,6.3673]
[1722263899918,5.277,189.5,189.48,6.3673]
[1722263900111,5.2767,189.51,189.48,6.3673]
[1722263900514,5.2771,189.5,189.48,6.3673]
[1722263900718,24.17,189.54,189.44,22.3908]
[1722263900923,5.2771,189.5,189.45,5.2783]
[1722263901138,5.2771,189.5,189.46,5.2781]
[1722263901647,24.17,189.54,189.48,5.2774]
[1722263901941,20.0,189.53,189.48,5.2774]
[1722263902308,20.0,189.53,189.49,5.2772]
[1722263902514,5.2759,189.54,189.5,5.277]
[1722263902734,5.2765,189.52,189.48,13.1938]
[1722263902924,5.2769,189.51,189.46,5.278]
[1722263903139,20.0,189.53,189.44,22.3908]
[1722263903327,5.2776,189.48,189.44,22.3908]
[1722263903857,45.0,189.52,189.44,22.3908]
[1722263903858,5.2779,189.47,189.44,22.3908]
[1722263904153,5.2779,189.47,189.44,6.0907]
[1722263905232,5.2776,189.48,189.44,6.0907]
[1722263905749,24.17,189.51,189.44,11.3693]
[1722263905750,5.2773,189.49,189.44,11.3693]
[1722263906126,5.2776,189.48,189.44,11.3693]
[1722263906542,24.17,189.51,189.45,5.2784]
[1722263906745,20.0,189.5,189.45,13.196]
[1722263907250,24.17,189.54,189.45,13.196]
[1722263907251,20.0,189.53,189.45,13.196]
[1722263907433,5.2765,189.52,189.47,5.2777]
[1722263907634,20.0,189.51,189.47,5.2777]
[1722263908025,25.2767,189.51,189.46,5.2781]
[1722263908248,5.277,189.5,189.45,18.4743]
[1722263908438,20.0,189.49,189.45,13.196]
[1722263908638,20.0,189.51,189.45,13.196]
[1722263908851,25.2768,189.51,189.45,13.196]
[1722263909055,5.277,189.5,189.45,18.4742]
[1722263909255,20.0,189.51,189.46,5.2779]
[1722263909439,25.2769,189.51,189.46,5.2779]
[1722263909746,5.277,189.5,189.45,18.4743]
[1722263909949,25.2767,189.51,189.47,5.2778]
[1722263910138,25.2767,189.51,189.46,5.2781]
[1722263910339,5.2773,189.49,189.45,18.4743]
[1722263910541,5.2781,189.47,189.41,18.4778]
[1722263910741,25.489351,189.5,189.41,18.4778]
[1722263911053,5.2782,189.46,189.42,5.2792]
[1722263911236,5.2782,189.46,189.41,18.4777]
[1722263911658,5.2785,189.45,189.41,13.1983]
[1722263911970,5.2781,189.47,189.41,18.4778]
[1722263912141,25.2781,189.46,189.41,18.4778]
[1722263912339,20.0,189.46,189.41,13.1983]
[1722263912544,24.17,189.5,189.42,0.56244546]
[1722263912849,20.0,189.49,189.42,0.56244546]
[1722263913032,20.0,189.49,189.45,5.2784]
[1722263913232,20.0,189.49,189.46,5.2781]
[1722263913451,5.277,189.5,189.45,5.2783]
[1722263913655,20.0,189.49,189.46,5.278]
[1722263913962,20.0,189.49,189.4,0.56200909]
[1722263913963,20.0,189.49,189.47,5.2778]
[1722263914162,20.0,189.49,189.4,0.5617453]
[1722263914163,24.17,189.56,189.48,13.1939]
[1722263914346,5.2763,189.53,189.49,5.2772]
[1722263914544,39.4943,189.59,189.48,36.3164]
[1722263914752,39.4943,189.59,189.51,5.2765]
[1722263915062,24.17,189.59,189.51,5.2765]
[1722263915372,5.2752,189.57,189.51,5.2767]
[1722263915547,5.2752,189.57,189.52,5.2762]
[1722263915866,45.7341,189.63,189.54,13.1895]
[1722263915867,24.17,189.63,189.54,13.1895]
[1722263916262,5.2743,189.6,189.55,5.2755]
[1722263916462,5.2743,189.6,189.54,18.4654]
[1722263916639,5.2743,189.6,189.55,5.2755]
[1722263917150,24.17,189.63,189.54,18.4654]
[1722263917550,5.2742,189.6,189.55,5.2756]
[1722263917944,5.2742,189.6,189.54,18.4654]
[1722263918159,5.2751,189.57,189.52,5.2762]
[1722263918475,5.2748,189.58,189.52,5.2762]
[1722263918678,5.2751,189.57,189.52,5.2762]
[1722263919361,5.2753,189.56,189.51,5.2767]
[1722263919941,5.2753,189.56,189.5,13.1921]
[1722263920174,30.37321274,189.62,189.5,13.1921]
[1722263920175,5.2757,189.55,189.5,13.1921]
[1722263920379,13.1865,189.59,189.49,5.2772]
[1722263920561,5.2756,189.55,189.49,5.2772]
[1722263920743,5.2754,189.56,189.5,5.2767]
[1722263920948,24.17,189.57,189.5,5.2767]
[1722263921149,20.0,189.56,189.51,5.2767]
[1722263921483,20.0,189.56,189.52,5.2764]
[1722263921975,20.0,189.56,189.53,5.276]
[1722263922207,25.2748,189.58,189.53,5.2759]
[1722263922357,25.2748,189.58,189.52,13.1905]
[1722263922358,20.0,189.58,189.52,13.1905]
[1722263922674,25.2748,189.58,189.52,18.4667]
[1722263922878,20.0,189.59,189.52,18.4667]
[1722263923048,5.2751,189.57,189.52,18.4667]
[1722263923782,20.0,189.59,189.52,13.1905]
[1722263924081,5.2753,189.57,189.52,13.1905]
[1722263924274,5.2754,189.56,189.52,13.1905]
[1722263924590,45.0,189.58,189.52,18.4668]
[1722263924762,5.2751,189.57,189.52,18.4668]
[1722263924962,25.2747,189.59,189.52,13.1905]
[1722263925985,1.31886775,189.58,189.52,13.1905]
[1722263926191,20.0,189.59,189.55,13.189]
[1722263926372,5.2739,189.61,189.55,13.189]
[1722263926777,5.2737,189.62,189.55,13.189]
[1722263927089,5.2737,189.62,189.57,5.2748]
[1722263927260,24.17,189.63,189.57,5.2748]
[1722263927261,5.2739,189.61,189.57,5.2748]
[1722263927464,5.2739,189.61,189.56,5.2753]
[1722263927761,24.17,189.63,189.55,13.189]
[1722263927762,5.2746,189.59,189.55,13.189]
[1722263927966,5.2749,189.58,189.51,13.1913]
[1722263928182,20.0,189.6,189.54,13.1897]
[1722263928386,5.274,189.61,189.54,13.1897]
[1722263928896,20.0,189.6,189.54,13.1897]
[1722263929191,20.0,189.6,189.56,5.2753]
[1722263930784,20.0,189.6,189.56,5.2752]
[1722263931088,25.274,189.61,189.56,5.2752]
[1722263931467,20.0,189.61,189.56,13.1878]
[1722263931798,25.2738,189.62,189.57,5.275]
[1722263932290,6.59266804,189.61,189.56,18.4631]
[1722263932470,5.274,189.61,189.56,18.4631]
[1722263932670,5.2742,189.6,189.56,13.1878]
[1722263932872,5.2742,189.6,189.55,5.2756]
[1722263933195,5.2741,189.61,189.56,5.2752]
[1722263933608,20.0,189.62,189.55,13.1884]
[1722263933779,5.2731,189.64,189.59,5.2742]
[1722263933981,15.2812,189.68,189.6,0.55965756]
[1722263934194,5.2728,189.65,189.59,13.1856]
[1722263934500,5.2728,189.65,189.6,5.274]
[1722263934707,24.17,189.66,189.57,22.7111]
[1722263934883,5.2736,189.63,189.58,5.2748]
[1722263935082,37.3515,189.66,189.57,22.7111]
[1722263935385,45.0,189.65,189.57,6.3214]
[1722263935584,5.274,189.61,189.56,18.4635]
[1722263935787,5.2742,189.6,189.55,5.2755]
[1722263936102,5.274,189.61,189.56,5.2753]
[1722263937281,5.274,189.61,189.57,5.275]
[1722263937605,5.2743,189.6,189.55,18.4641]
[1722263937812,5.2743,189.6,189.55,13.1885]
[1722263938482,5.2739,189.62,189.56,5.2753]
[1722263938693,20.0,189.61,189.58,5.2746]
[1722263938986,20.0,189.61,189.58,5.2747]
[1722263939399,20.0,189.62,189.59,5.2744]
[1722263939585,20.0,189.63,189.59,5.2744]
[1722263939784,25.2735,189.63,189.58,18.4617]
[1722263939987,5.2737,189.62,189.58,13.1869]
[1722263940182,5.274,189.61,189.56,5.2751]
[1722263940385,20.0,189.63,189.55,13.189]
[1722263940683,37.3515,189.66,189.55,18.4646]
[1722263940684,5.2742,189.6,189.55,18.4646]
[1722263941089,20.0,189.65,189.56,0.5602714]
[1722263941290,45.0,189.64,189.57,5.275]
[1722263941502,20.0,189.63,189.55,18.4644]
[1722263941831,5.2745,189.59,189.55,18.4644]
[1722263942108,5.2743,189.6,189.55,18.4644]
[1722263943215,5.2738,189.62,189.57,5.275]
[1722263943397,5.2739,189.61,189.57,5.275]
[1722263943598,5.2742,189.6,189.56,5.2753]
[1722263943805,5.2741,189.61,189.56,5.2753]
[1722263944202,20.0,189.63,189.55,13.189]
[1722263944421,25.2734,189.63,189.58,18.4615]
[1722263944622,20.0,189.63,189.58,13.1868]
[1722263944923,5.273,189.65,189.61,13.1849]
[1722263945140,20.0,189.64,189.61,13.1849]
[1722263945421,4.73413222,189.71,189.61,13.1849]
[1722263945599,13.1774,189.72,189.62,0.55909016]
[1722263945801,5.2722,189.68,189.62,5.83269016]
[1722263946008,5.2722,189.68,189.62,5.2736]
[1722263946198,5.2722,189.68,189.61,29.585]
[1722263946529,13.1774,189.72,189.63,0.55899204]
[1722263946723,5.2721,189.68,189.62,5.2737]
[1722263946901,20.0,189.67,189.61,16.4001]
[1722263947097,1.31829992,189.66,189.61,16.4001]
[1722263947296,5.2726,189.66,189.61,16.4001]
[1722263947493,44.17,189.71,189.61,16.4001]
[1722263947494,1.31828808,189.69,189.61,16.4001]
[1722263947893,21.31828808,189.69,189.61,21.674]
[1722263948115,5.2728,189.65,189.61,16.4001]
[1722263948523,20.0,189.69,189.61,21.674]
[1722263948719,5.2721,189.68,189.62,5.2735]
[1722263948919,20.0,189.67,189.63,13.1833]
[1722263949116,5.2717,189.7,189.63,13.1833]
[1722263949307,5.2717,189.7,189.64,5.2731]
[1722263949516,5.2719,189.69,189.64,5.2731]
[1722263949734,5.2722,189.68,189.63,13.1833]
[1722263950023,24.17,189.72,189.64,13.1828]
[1722263950200,29.4411,189.72,189.66,5.2725]
[1722263950404,5.2711,189.72,189.67,5.2722]
[1722263950610,5.2707,189.73,189.68,0.55816522]
[1722263950801,5.2704,189.74,189.68,5.83016522]
[1722263951199,5.2704,189.74,189.69,5.2717]
[1722263951626,272.9716,189.81,189.7,0.55798948]
[1722263951839,297.1416,189.81,189.72,5.2707]
[1722263952008,297.1416,189.81,189.7,16.3807]
[1722263952210,5.2702,189.75,189.7,16.3807]
[1722263952417,5.2701,189.75,189.7,21.652]
[1722263952618,297.1416,189.81,189.71,5.271]
[1722263953126,259.8,189.81,189.7,16.3807]
[1722263953331,5.2687,189.8,189.75,5.27]
[1722263953537,5.2683,189.82,189.76,0.55687431]
[1722263953841,5.2676,189.84,189.76,13.1744]
[1722263954331,5.2679,189.83,189.77,5.2693]
[1722263954643,24.17,189.85,189.76,13.1744]
[1722263954934,5.2687,189.8,189.75,6.4064]
[1722263955118,24.17,189.82,189.75,6.4064]
[1722263955119,5.269,189.79,189.75,6.4064]
[1722263955326,5.2684,189.81,189.75,6.4064]
[1722263955507,5.2687,189.8,189.75,11.6764]
[1722263956114,5.2687,189.8,189.75,6.4064]
[1722263956741,24.17,189.82,189.75,6.4064]
[1722263956742,29.4384,189.82,189.75,6.4064]
[1722263956949,5.2685,189.81,189.75,6.4064]
[1722263957119,20.0,189.8,189.75,19.5813]
[1722263957728,20.0,189.81,189.75,19.5813]
[1722263958044,20.0,189.81,189.76,5.2698]
[1722263958345,20.0,189.81,189.77,5.2694]
[1722263958640,20.0,189.83,189.75,19.5813]
[1722263958849,5.2682,189.82,189.75,24.8511]
[1722263959227,20.0,189.81,189.75,24.8511]
[1722263959438,20.0,189.81,189.78,5.269]
[1722263959640,5.2674,189.85,189.79,5.2687]
[1722263959942,5.2678,189.83,189.78,13.1728]
[1722263960126,20.0,189.82,189.78,18.4419]
[1722263960333,20.0,189.82,189.79,5.2689]
[1722263960657,20.0,189.82,189.78,28.5943]
[1722263961033,20.0,189.82,189.78,33.8635]
[1722263961230,20.0,189.84,189.78,33.8635]
[1722263961632,5.2679,189.83,189.78,28.5943]
[1722263961840,20.0,189.82,189.78,28.5943]
[1722263962021,20.0,189.82,189.79,5.2688]
[1722263962219,20.0,189.84,189.8,5.82497697]
[1722263962421,20.0,189.85,189.78,28.5943]
[1722263962720,20.7828759,189.88,189.78,33.8632]
[1722263963028,5.2675,189.84,189.79,0.55624885]
[1722263963247,20.7828759,189.88,189.78,28.5943]
[1722263963425,5.2672,189.86,189.79,5.2687]
[1722263963627,20.7828759,189.88,189.79,5.2687]
[1722263963848,5.2675,189.85,189.79,5.2687]
[1722263964053,25.2676,189.84,189.78,33.8635]
[1722263964228,5.2676,189.84,189.78,33.8635]
[1722263964564,5.2679,189.83,189.78,33.8635]
[1722263964753,5.2679,189.83,189.78,28.5943]
[1722263965059,5.2679,189.83,189.78,33.8634]
[1722263965219,5.2679,189.83,189.78,28.5943]
[1722263965416,24.17,189.87,189.78,13.1728]
[1722263965417,5.2682,189.82,189.78,13.1728]
[1722263965643,5.2682,189.82,189.76,5.2698]
[1722263965841,24.17,189.84,189.75,6.4064]
[1722263966047,5.2684,189.82,189.75,11.6763]
[1722263966424,15.87,189.83,189.75,6.4064]
[1722263966627,15.87,189.83,189.71,5.2709]
[1722263966628,24.17,189.81,189.71,5.2709]
[1722263966819,5.2698,189.76,189.71,5.2709]
[1722263967026,5.2698,189.76,189.7,40.8038]
[1722263967518,5.2698,189.76,189.67,26.3611]
[1722263967519,5.2709,189.72,189.66,24.8967]
[1722263967724,5.2706,189.73,189.67,5.2722]
[1722263967923,5.2706,189.73,189.68,5.272]
[1722263968120,1.31790821,189.72,189.66,19.6243]
[1722263968339,5.2714,189.7,189.66,6.4435]
[1722263968565,20.0,189.74,189.66,6.4435]
[1722263968566,5.2714,189.71,189.66,6.4435]
[1722263968854,5.2714,189.71,189.66,11.716]
[1722263969155,5.2709,189.72,189.66,11.716]
[1722263969335,20.0,189.71,189.66,11.716]
[1722263970156,25.2712,189.71,189.66,11.716]
[1722263970362,25.2712,189.71,189.66,6.4435]
[1722263970564,5.2715,189.7,189.66,6.4435]
[1722263970933,20.0,189.71,189.66,6.4435]
[1722263971253,20.0,189.74,189.66,6.4435]
[1722263971429,45.0,189.73,189.66,6.4435]
[1722263971630,20.0,189.72,189.66,6.4435]
[1722263971926,5.2717,189.69,189.66,6.4435]
[1722263972132,20.0,189.72,189.66,6.4435]
[1722263972133,5.2714,189.71,189.66,6.4435]
[1722263972330,20.0,189.7,189.66,6.4435]
[1722263972747,20.0,189.7,189.66,11.716]
[1722263973334,25.2712,189.71,189.66,11.716]
[1722263973652,25.2712,189.71,189.66,6.4435]
[1722263974062,25.2712,189.71,189.66,11.716]
[1722263974246,5.2715,189.7,189.66,6.4435]
[1722263974448,20.0,189.71,189.66,6.4435]
[1722263974650,5.2719,189.69,189.66,6.4435]
[1722263975257,5.2712,189.71,189.66,11.716]
[1722263975456,20.0,189.7,189.66,11.716]
[1722263975843,20.0,189.7,189.66,2.4515]
[1722263975844,25.2715,189.7,189.66,2.4515]
[1722263976145,20.0,189.7,189.66,7.7239]
[1722263977344,25.2717,189.7,189.66,2.4515]
[1722263977546,20.0,189.7,189.66,2.4515]
[1722263977742,20.0,189.72,189.67,5.2723]
[1722263977948,20.0,189.72,189.66,2.4515]
[1722263978345,5.2712,189.71,189.66,7.7239]
[1722263978536,20.0,189.7,189.66,7.7239]
[1722263979164,20.0,189.7,189.66,2.4515]
[1722263979339,20.0,189.74,189.66,2.4515]
[1722263980229,20.0,189.74,189.68,13.18]
[1722263980442,5.2701,189.75,189.7,5.2714]
[1722263980842,20.0,189.74,189.71,5.2711]
[1722263981147,5.2698,189.76,189.71,5.82874528]
[1722263982037,5.2689,189.8,189.74,5.2702]
[1722263982238,5.2691,189.79,189.74,5.2702]
[1722263982545,53.1311,189.84,189.7,0.17]
[1722263982737,53.1311,189.84,189.74,18.446]
[1722263982738,5.269,189.79,189.74,18.446]
[1722263982954,5.2692,189.78,189.74,13.1757]
[1722263983139,5.2695,189.77,189.72,5.2708]
[1722263983565,5.2695,189.77,189.71,13.1779]
[1722263983566,53.1311,189.84,189.71,13.1779]
[1722263983741,45.17,189.83,189.71,13.1779]
[1722263984073,5.2698,189.76,189.71,18.449]
[1722263984365,5.2698,189.76,189.71,18.4488]
[1722263984869,15.7916,189.84,189.75,5.27]
[1722263984870,5.2687,189.8,189.75,5.27]
[1722263985243,20.0,189.79,189.76,5.2697]
[1722263985544,25.2687,189.8,189.75,5.27]
[1722263985860,20.0,189.8,189.76,5.2698]
[1722263986541,20.0,189.8,189.76,5.2697]
[1722263986755,20.0,189.81,189.77,0.55664125]
[1722263987147,24.17,189.84,189.77,0.55664125]
[1722263987148,5.2678,189.84,189.78,5.2692]
[1722263987356,5.2673,189.85,189.79,5.2689]
[1722263987561,5.2677,189.84,189.78,5.2692]
[1722263987738,5.2677,189.84,189.78,5.82549574]
[1722263988140,5.2677,189.84,189.78,5.2692]
[1722263988643,20.0,189.83,189.79,0.55629557]
[1722263988846,20.0,189.83,189.78,5.2692]
[1722263989234,25.2678,189.83,189.77,18.4432]
[1722263989549,5.2685,189.81,189.75,6.4507]
[1722263989774,5.2685,189.81,189.76,5.2697]
[1722263989941,25.268,189.83,189.77,5.2694]
[1722263990466,20.0,189.83,189.76,18.4441]
[1722263990766,5.2681,189.82,189.77,5.2695]
[1722263991568,20.0,189.85,189.76,13.1744]
[1722263991869,5.2684,189.81,189.76,18.4442]
[1722263992352,5.2681,189.82,189.76,18.4442]
[1722263992549,5.2684,189.81,189.76,18.4442]
[1722263993162,45.0,189.84,189.75,6.4507]
[1722263993339,44.17,189.83,189.75,6.4507]
[1722263993560,5.2687,189.8,189.75,6.4507]
[1722263993761,5.2687,189.8,189.75,11.7206]
[1722263994455,50.2678,189.84,189.78,18.4423]
[1722263994666,50.2678,189.84,189.77,5.2695]
[1722263994667,20.0,189.83,189.77,5.2695]
[1722263994858,20.0,189.83,189.76,0.17]
[1722263995059,20.0,189.83,189.82,5.2681]
[1722263995284,20.0,189.83,189.81,5.2683]
[1722263995497,25.267,189.86,189.8,18.4402]
[1722263996273,25.267,189.86,189.81,5.2683]
[1722263997160,25.267,189.86,189.8,18.44]
[1722263997394,25.267,189.86,189.8,13.1716]
[1722263998291,25.267,189.86,189.81,5.2682]
[1722263998464,20.0,189.86,189.82,5.2681]
[1722263998664,20.0,189.86,189.77,5.2694]
[1722263998869,5.2683,189.82,189.76,18.4442]
[1722263999183,13.9492759,189.88,189.75,6.4507]
[1722263999184,24.17,189.84,189.75,6.4507]
[1722263999364,5.2693,189.78,189.75,6.4507]
[1722263999571,20.0,189.81,189.75,6.4507]
[1722263999888,5.2687,189.8,189.75,6.4507]
[1722264000101,44.17,189.81,189.73,15.6172]
[1722264000264,45.0,189.8,189.73,15.6172]
[1722264000470,20.0,189.79,189.73,15.6172]
[1722264000683,5.2692,189.78,189.73,20.8878]
[1722264001089,25.2689,189.79,189.74,5.2703]
[1722264001289,20.0,189.79,189.74,13.1758]
[1722264001463,25.2684,189.81,189.76,5.2697]
[1722264001668,5.269,189.79,189.74,18.446]
[1722264001867,5.2693,189.78,189.74,13.1758]
[1722264002069,5.2695,189.77,189.73,15.6172]
[1722264002285,5.2701,189.75,189.7,24.6682]
[1722264002485,24.17,189.81,189.7,24.6682]
[1722264002486,5.2703,189.74,189.7,19.3969]
[1722264002769,1.3176165,189.8,189.66,18.4536]
[1722264002770,5.2712,189.71,189.66,18.4536]
[1722264002965,5.2711,189.72,189.66,18.4538]
[1722264003280,5.2712,189.71,189.66,5.2725]
[1722264004005,20.0,189.73,189.67,5.2722]
[1722264004209,20.0,189.74,189.68,0.55824543]
[1722264004373,5.2701,189.75,189.69,18.4507]
[1722264004701,25.2704,189.74,189.69,18.4507]
[1722264004908,20.0,189.74,189.69,18.4507]
[1722264005203,5.2707,189.73,189.69,13.1792]
[1722264005387,5.2688,189.8,189.72,13.1772]
[1722264005581,29.4386,189.81,189.75,5.27]
[1722264005779,5.2687,189.8,189.75,13.1751]
[1722264005987,5.2694,189.78,189.73,15.6167]
[1722264006198,13.17,189.83,189.73,15.6167]
[1722264006368,13.17,189.83,189.72,13.1772]
[1722264006369,24.17,189.81,189.72,13.1772]
[1722264006700,5.2695,189.77,189.72,13.1772]
[1722264007298,20.0,189.8,189.72,13.1772]
[1722264007299,5.2692,189.78,189.72,13.1772]
[1722264007595,5.2706,189.74,189.69,5.2715]
[1722264007891,5.27,189.76,189.69,0.55790039]
[1722264008107,20.0,189.8,189.7,13.178]
[1722264008274,5.2689,189.8,189.73,13.1764]
[1722264008474,24.17,189.81,189.73,18.4468]
[1722264008678,24.17,189.81,189.7,26.3573]
[1722264008679,5.2696,189.77,189.72,5.2708]
[1722264008874,24.17,189.81,189.73,5.2706]
[1722264008875,5.2693,189.78,189.73,5.2706]
[1722264009102,24.17,189.84,189.7,26.3573]
[1722264009283,5.2686,189.81,189.76,5.2697]
[1722264009499,5.2687,189.8,189.75,18.4452]
[1722264009784,25.2689,189.79,189.75,13.1752]
[1722264009999,5.2689,189.79,189.75,13.1752]
[1722264010209,5.2687,189.8,189.75,18.4451]
[1722264010408,5.2692,189.78,189.73,5.2704]
[1722264010585,5.2692,189.78,189.73,5.2706]
[1722264011093,5.2689,189.79,189.74,5.2703]
[1722264011278,5.2689,189.79,189.71,13.1774]
[1722264011279,5.2692,189.78,189.73,5.2706]
[1722264011677,5.2698,189.76,189.71,18.4483]
[1722264011874,5.2695,189.78,189.71,13.1774]
[1722264012099,5.269,189.79,189.71,13.1774]
[1722264012321,5.269,189.79,189.72,0.55742053]
[1722264012502,24.17,189.81,189.71,13.1774]
[1722264012701,24.17,189.78,189.68,15.6167]
[1722264013009,24.17,189.78,189.67,13.1804]
[1722264013010,79.66183684,189.77,189.67,13.1804]
[1722264013196,5.2701,189.75,189.7,5.2713]
[1722264013405,50.2704,189.74,189.68,5.2718]
[1722264013591,50.2704,189.74,189.67,13.1804]
[1722264013784,5.2706,189.73,189.68,5.272]
[1722264014186,50.2704,189.74,189.68,5.272]
[1722264014408,50.2704,189.74,189.69,5.2716]